[Event "Titled Tuesday Blitz March 22 Early 2022"]
[White "Bintang, Rasyid A. Hidayat"]
[Black "Mena, Ailen Oriana"]
[WhiteFideId "7105355"]
[BlackFideId "3902773"]
[WhiteElo "2375"]
[BlackElo "1534"]
[Result "1-0"]
[Round "09"]
[TimeControl "180+1"]
[Date "2022.03.22"]
[WhiteClock "0:00:38"]
[BlackClock "0:00:02"]

1. d4 {[%clk 0:02:19]}  d5 {[%clk 0:02:55]} 2. Bf4 {[%clk 0:02:19]}  Nf6 {[%clk 0:02:51]} 3. e3 {[%clk 0:02:19]}  e6 {[%clk 0:02:50]} 4. Nd2 {[%clk 0:02:18]}  c5 {[%clk 0:02:50]} 5. Ngf3 {[%clk 0:02:18]}  Bd6 {[%clk 0:02:50]} 6. dxc5 {[%clk 0:02:17]}  Bxc5 {[%clk 0:02:48]} 7. Bd3 {[%clk 0:02:16]}  O-O {[%clk 0:02:47]} 8. c3 {[%clk 0:02:15]}  b6 {[%clk 0:02:43]} 9. O-O {[%clk 0:02:15]}  Bb7 {[%clk 0:02:43]} 10. Qe2 {[%clk 0:02:14]}  Nbd7 {[%clk 0:02:36]} 11. e4 {[%clk 0:02:14]}  dxe4 {[%clk 0:02:34]} 12. Nxe4 {[%clk 0:02:14]}  Nxe4 {[%clk 0:02:32]} 13. Bxe4 {[%clk 0:02:15]}  Bxe4 {[%clk 0:02:33]} 14. Qxe4 {[%clk 0:02:16]}  Nf6 {[%clk 0:02:33]} 15. Qe2 {[%clk 0:02:11]}  Nd5 {[%clk 0:02:24]} 16. Bg3 {[%clk 0:02:09]}  Qf6 {[%clk 0:02:19]} 17. Qe5 {[%clk 0:02:05]}  Rfd8 {[%clk 0:02:11]} 18. Rfd1 {[%clk 0:02:04]}  Rac8 {[%clk 0:02:05]} 19. Qe4 {[%clk 0:01:40]}  Qg6 {[%clk 0:01:46]} 20. Qxg6 {[%clk 0:01:38]}  hxg6 {[%clk 0:01:47]} 21. Be5 {[%clk 0:01:36]}  f6 {[%clk 0:01:39]} 22. Bd4 {[%clk 0:01:36]}  Kf7 {[%clk 0:01:34]} 23. Bxc5 {[%clk 0:01:34]}  Rxc5 {[%clk 0:01:33]} 24. Rd3 {[%clk 0:01:25]}  Re8 {[%clk 0:01:17]} 25. Rad1 {[%clk 0:01:25]}  Nf4 {[%clk 0:01:16]} 26. Rd7+ {[%clk 0:01:22]}  Re7 {[%clk 0:01:16]} 27. g3 {[%clk 0:01:16]}  Nd5 {[%clk 0:01:13]} 28. Rxe7+ {[%clk 0:01:15]}  Kxe7 {[%clk 0:01:14]} 29. Nd4 {[%clk 0:01:15]}  a5 {[%clk 0:00:55]} 30. Re1 {[%clk 0:01:08]}  e5 {[%clk 0:00:52]} 31. f4 {[%clk 0:01:08]}  Kd6 {[%clk 0:00:37]} 32. fxe5+ {[%clk 0:01:08]}  fxe5 {[%clk 0:00:38]} 33. Nf3 {[%clk 0:01:09]}  Nf6 {[%clk 0:00:34]} 34. Rd1+ {[%clk 0:01:09]}  Rd5 {[%clk 0:00:31]} 35. Re1 {[%clk 0:01:09]}  e4 {[%clk 0:00:28]} 36. Nd4 {[%clk 0:01:08]}  b5 {[%clk 0:00:20]} 37. Rd1 {[%clk 0:01:03]}  b4 {[%clk 0:00:14]} 38. c4 {[%clk 0:00:58]}  Rh5 {[%clk 0:00:07]} 39. Nb5+ {[%clk 0:00:58]}  Ke5 {[%clk 0:00:05]} 40. Nc7 {[%clk 0:00:52]}  e3 {[%clk 0:00:04]} 41. Nb5 {[%clk 0:00:44]}  Ke4 {[%clk 0:00:04]} 42. Nd6+ {[%clk 0:00:42]}  Kf3 {[%clk 0:00:02]} 43. Rd4 {[%clk 0:00:38]} 1-0


[Site "https://www.chess.com"]

[Event "Titled Tuesday Blitz March 22 Early 2022"]
[White "Bodnaruk, Anastasia"]
[Black "Manolache, Marius"]
[WhiteFideId "4181751"]
[BlackFideId "1201530"]
[WhiteElo "2393"]
[BlackElo "2389"]
[Result "0-1"]
[Round "09"]
[TimeControl "180+1"]
[Date "2022.03.22"]
[WhiteClock "0:00:03"]
[BlackClock "0:01:09"]

1. e4 {[%clk 0:02:57]}  c5 {[%clk 0:02:59]} 2. Nc3 {[%clk 0:02:56]}  a6 {[%clk 0:02:58]} 3. Nge2 {[%clk 0:02:55]}  Nc6 {[%clk 0:02:57]} 4. d4 {[%clk 0:02:49]}  cxd4 {[%clk 0:02:56]} 5. Nxd4 {[%clk 0:02:50]}  e6 {[%clk 0:02:55]} 6. Nxc6 {[%clk 0:02:46]}  bxc6 {[%clk 0:02:55]} 7. Bd3 {[%clk 0:02:47]}  d5 {[%clk 0:02:54]} 8. O-O {[%clk 0:02:45]}  Nf6 {[%clk 0:02:49]} 9. Re1 {[%clk 0:02:34]}  Be7 {[%clk 0:02:45]} 10. e5 {[%clk 0:02:30]}  Nd7 {[%clk 0:02:44]} 11. Na4 {[%clk 0:02:28]}  a5 {[%clk 0:02:41]} 12. c4 {[%clk 0:02:19]}  g6 {[%clk 0:02:29]} 13. Bh6 {[%clk 0:02:06]}  Bg5 {[%clk 0:02:28]} 14. Bxg5 {[%clk 0:02:01]}  Qxg5 {[%clk 0:02:27]} 15. Qe2 {[%clk 0:01:57]}  Rb8 {[%clk 0:02:24]} 16. Rac1 {[%clk 0:01:47]}  h5 {[%clk 0:02:14]} 17. cxd5 {[%clk 0:01:42]}  cxd5 {[%clk 0:02:14]} 18. Bb5 {[%clk 0:01:31]}  O-O {[%clk 0:02:08]} 19. Rxc8 {[%clk 0:01:15]}  Rfxc8 {[%clk 0:02:05]} 20. Bxd7 {[%clk 0:01:15]}  Rc1 {[%clk 0:02:00]} 21. Rxc1 {[%clk 0:00:31]}  Qxc1+ {[%clk 0:01:59]} 22. Qf1 {[%clk 0:00:31]}  Qf4 {[%clk 0:01:58]} 23. Qe2 {[%clk 0:00:20]}  Rb4 {[%clk 0:01:52]} 24. g3 {[%clk 0:00:16]}  Qc1+ {[%clk 0:01:49]} 25. Kg2 {[%clk 0:00:16]}  Re4 {[%clk 0:01:43]} 26. Qb5 {[%clk 0:00:13]}  Re1 {[%clk 0:01:41]} 27. Be8 {[%clk 0:00:10]}  Rg1+ {[%clk 0:01:35]} 28. Kh3 {[%clk 0:00:10]}  Qg5 {[%clk 0:01:34]} 29. Bxf7+ {[%clk 0:00:08]}  Kxf7 {[%clk 0:01:33]} 30. Qd7+ {[%clk 0:00:08]}  Qe7 {[%clk 0:01:34]} 31. Qc6 {[%clk 0:00:05]}  g5 {[%clk 0:01:33]} 32. f3 {[%clk 0:00:05]}  Kg6 {[%clk 0:01:16]} 33. Nb6 {[%clk 0:00:04]}  g4+ {[%clk 0:01:13]} 34. fxg4 {[%clk 0:00:04]}  hxg4+ {[%clk 0:01:13]} 35. Kxg4 {[%clk 0:00:04]}  Qg5+ {[%clk 0:01:14]} 36. Kf3 {[%clk 0:00:05]}  Qf5+ {[%clk 0:01:14]} 37. Ke2 {[%clk 0:00:04]}  Qe4+ {[%clk 0:01:11]} 38. Kd2 {[%clk 0:00:03]}  Qd4+ {[%clk 0:01:10]} 39. Ke2 {[%clk 0:00:03]}  Rg2+ {[%clk 0:01:10]} 40. Kf3 {[%clk 0:00:03]}  Rf2# {[%clk 0:01:09]} 0-1


[Site "https://www.chess.com"]

[Event "Titled Tuesday Blitz March 22 Early 2022"]
[White "Cavanah, Troy"]
[Black "Saravana, Krishnan P."]
[WhiteFideId "30949670"]
[BlackFideId "5018382"]
[WhiteElo "1878"]
[BlackElo "2210"]
[Result "0-1"]
[Round "09"]
[TimeControl "180+1"]
[Date "2022.03.22"]
[WhiteClock "0:01:42"]
[BlackClock "0:02:00"]

1. e4 {[%clk 0:03:00]}  c6 {[%clk 0:02:59]} 2. d4 {[%clk 0:03:00]}  d5 {[%clk 0:03:00]} 3. e5 {[%clk 0:03:01]}  Bf5 {[%clk 0:02:59]} 4. Nf3 {[%clk 0:03:01]}  e6 {[%clk 0:02:59]} 5. Be2 {[%clk 0:03:02]}  Nd7 {[%clk 0:02:59]} 6. O-O {[%clk 0:03:02]}  h6 {[%clk 0:02:59]} 7. Nbd2 {[%clk 0:03:02]}  Ne7 {[%clk 0:02:59]} 8. Nb3 {[%clk 0:03:02]}  g5 {[%clk 0:02:58]} 9. Ne1 {[%clk 0:03:00]}  Bg6 {[%clk 0:02:55]} 10. Bd2 {[%clk 0:03:00]}  a6 {[%clk 0:02:54]} 11. a4 {[%clk 0:02:58]}  c5 {[%clk 0:02:52]} 12. c4 {[%clk 0:02:52]}  cxd4 {[%clk 0:02:46]} 13. Nxd4 {[%clk 0:02:50]}  Nxe5 {[%clk 0:02:46]} 14. a5 {[%clk 0:02:40]}  Nxc4 {[%clk 0:02:44]} 15. Bxc4 {[%clk 0:02:30]}  dxc4 {[%clk 0:02:44]} 16. Qa4+ {[%clk 0:02:25]}  Qd7 {[%clk 0:02:44]} 17. Qxc4 {[%clk 0:02:24]}  Rc8 {[%clk 0:02:40]} 18. Qa4 {[%clk 0:02:19]}  Bg7 {[%clk 0:02:36]} 19. Qxd7+ {[%clk 0:02:16]}  Kxd7 {[%clk 0:02:36]} 20. Bc3 {[%clk 0:02:16]}  Nd5 {[%clk 0:02:35]} 21. Rd1 {[%clk 0:02:06]}  Nxc3 {[%clk 0:02:31]} 22. bxc3 {[%clk 0:02:05]}  Ke7 {[%clk 0:02:31]} 23. Nef3 {[%clk 0:01:57]}  Rxc3 {[%clk 0:02:30]} 24. Rfe1 {[%clk 0:01:57]}  Rd8 {[%clk 0:02:26]} 25. h4 {[%clk 0:01:43]}  g4 {[%clk 0:02:25]} 26. Ne5 {[%clk 0:01:43]}  Bxe5 {[%clk 0:02:17]} 27. Rxe5 {[%clk 0:01:44]}  Rc4 {[%clk 0:02:15]} 28. h5 {[%clk 0:01:42]}  Bh7 {[%clk 0:02:00]} 0-1


[Site "https://www.chess.com"]

[Event "Titled Tuesday Blitz March 22 Early 2022"]
[White "Chen, Qi b"]
[Black "Garv Gaur"]
[WhiteFideId "8614733"]
[BlackFideId "45030839"]
[WhiteElo "2432"]
[BlackElo "1950"]
[Result "0-1"]
[Round "09"]
[TimeControl "180+1"]
[Date "2022.03.22"]
[WhiteClock "0:00:02"]
[BlackClock "0:00:12"]

1. e4 {[%clk 0:02:59]}  c6 {[%clk 0:02:59]} 2. Nf3 {[%clk 0:02:55]}  d5 {[%clk 0:02:59]} 3. d3 {[%clk 0:02:55]}  Bg4 {[%clk 0:02:53]} 4. h3 {[%clk 0:02:53]}  Bxf3 {[%clk 0:02:48]} 5. Qxf3 {[%clk 0:02:53]}  e6 {[%clk 0:02:49]} 6. g3 {[%clk 0:02:53]}  Nf6 {[%clk 0:02:49]} 7. Bg2 {[%clk 0:02:53]}  h5 {[%clk 0:02:39]} 8. O-O {[%clk 0:02:49]}  Bc5 {[%clk 0:02:37]} 9. Re1 {[%clk 0:02:46]}  Nbd7 {[%clk 0:02:33]} 10. exd5 {[%clk 0:02:31]}  cxd5 {[%clk 0:02:30]} 11. c3 {[%clk 0:02:31]}  Qc7 {[%clk 0:02:25]} 12. d4 {[%clk 0:02:30]}  Bd6 {[%clk 0:02:25]} 13. Na3 {[%clk 0:02:26]}  a6 {[%clk 0:02:24]} 14. b3 {[%clk 0:02:19]}  Ne4 {[%clk 0:02:24]} 15. c4 {[%clk 0:02:10]}  Qa5 {[%clk 0:02:06]} 16. Nc2 {[%clk 0:02:08]}  Ndf6 {[%clk 0:02:05]} 17. c5 {[%clk 0:01:36]}  Bb8 {[%clk 0:01:57]} 18. b4 {[%clk 0:01:34]}  Qa4 {[%clk 0:01:56]} 19. Qb3 {[%clk 0:01:30]}  Qd7 {[%clk 0:01:32]} 20. a4 {[%clk 0:01:28]}  Bc7 {[%clk 0:01:32]} 21. h4 {[%clk 0:01:11]}  O-O {[%clk 0:01:10]} 22. Re2 {[%clk 0:00:54]}  Rae8 {[%clk 0:01:06]} 23. b5 {[%clk 0:00:51]}  e5 {[%clk 0:01:02]} 24. Bb2 {[%clk 0:00:50]}  exd4 {[%clk 0:00:58]} 25. Bxd4 {[%clk 0:00:49]}  Ng4 {[%clk 0:00:57]} 26. Rae1 {[%clk 0:00:41]}  f5 {[%clk 0:00:31]} 27. Nb4 {[%clk 0:00:32]}  Kh7 {[%clk 0:00:27]} 28. Qxd5 {[%clk 0:00:30]}  Qe7 {[%clk 0:00:19]} 29. Qxb7 {[%clk 0:00:25]}  Bxg3 {[%clk 0:00:14]} 30. Qxe7 {[%clk 0:00:23]}  Bh2+ {[%clk 0:00:14]} 31. Kf1 {[%clk 0:00:20]}  Rxe7 {[%clk 0:00:15]} 32. Nc6 {[%clk 0:00:18]}  Re6 {[%clk 0:00:13]} 33. Ba1 {[%clk 0:00:06]}  Rfe8 {[%clk 0:00:12]} 34. Nd4 {[%clk 0:00:06]}  Nd2+ {[%clk 0:00:11]} 35. Rxd2 {[%clk 0:00:02]}  Rxe1# {[%clk 0:00:12]} 0-1


[Site "https://www.chess.com"]

[Event "Titled Tuesday Blitz March 22 Early 2022"]
[White "Daneshvar, Bardiya"]
[Black "Matlakov, Maxim"]
[WhiteFideId "12576468"]
[BlackFideId "4168003"]
[WhiteElo "2295"]
[BlackElo "2669"]
[Result "1/2-1/2"]
[Round "09"]
[TimeControl "180+1"]
[Date "2022.03.22"]
[WhiteClock "0:00:13"]
[BlackClock "0:00:06"]

1. d4 {[%clk 0:02:39]}  Nf6 {[%clk 0:02:59]} 2. c4 {[%clk 0:02:35]}  e6 {[%clk 0:02:59]} 3. Nf3 {[%clk 0:02:35]}  d5 {[%clk 0:02:59]} 4. Nc3 {[%clk 0:02:34]}  Bb4 {[%clk 0:02:58]} 5. Qa4+ {[%clk 0:02:32]}  Nc6 {[%clk 0:02:57]} 6. e3 {[%clk 0:02:33]}  O-O {[%clk 0:02:57]} 7. Bd2 {[%clk 0:02:33]}  dxc4 {[%clk 0:02:54]} 8. Bxc4 {[%clk 0:02:34]}  Bd6 {[%clk 0:02:54]} 9. Qc2 {[%clk 0:02:29]}  a6 {[%clk 0:02:54]} 10. Ne4 {[%clk 0:02:22]}  Nb4 {[%clk 0:02:52]} 11. Nxf6+ {[%clk 0:02:19]}  Qxf6 {[%clk 0:02:50]} 12. Qb3 {[%clk 0:02:19]}  a5 {[%clk 0:02:15]} 13. a3 {[%clk 0:02:17]}  a4 {[%clk 0:02:15]} 14. Qd1 {[%clk 0:02:14]}  Nc6 {[%clk 0:02:11]} 15. Bb5 {[%clk 0:02:09]}  Bd7 {[%clk 0:02:08]} 16. Bxa4 {[%clk 0:02:00]}  e5 {[%clk 0:01:41]} 17. Bc3 {[%clk 0:01:39]}  exd4 {[%clk 0:01:02]} 18. Nxd4 {[%clk 0:01:36]}  Qg6 {[%clk 0:00:57]} 19. Nxc6 {[%clk 0:01:09]}  Qxg2 {[%clk 0:00:55]} 20. Rf1 {[%clk 0:00:49]}  bxc6 {[%clk 0:00:48]} 21. Bc2 {[%clk 0:00:31]}  Bh3 {[%clk 0:00:47]} 22. Qd3 {[%clk 0:00:28]}  Qxf1+ {[%clk 0:00:47]} 23. Qxf1 {[%clk 0:00:29]}  Bxf1 {[%clk 0:00:47]} 24. Kxf1 {[%clk 0:00:30]}  Rfe8 {[%clk 0:00:38]} 25. Rc1 {[%clk 0:00:26]}  Be5 {[%clk 0:00:37]} 26. Bd3 {[%clk 0:00:25]}  c5 {[%clk 0:00:33]} 27. Bb5 {[%clk 0:00:20]}  Re7 {[%clk 0:00:34]} 28. a4 {[%clk 0:00:17]}  g6 {[%clk 0:00:31]} 29. Ke2 {[%clk 0:00:17]}  Rb8 {[%clk 0:00:29]} 30. b3 {[%clk 0:00:15]}  Bxc3 {[%clk 0:00:25]} 31. Rxc3 {[%clk 0:00:15]}  Re5 {[%clk 0:00:26]} 32. Kf3 {[%clk 0:00:10]}  Rh5 {[%clk 0:00:26]} 33. Kg3 {[%clk 0:00:11]}  Rb6 {[%clk 0:00:25]} 34. f4 {[%clk 0:00:10]}  Rd5 {[%clk 0:00:23]} 35. Bc4 {[%clk 0:00:09]}  Rd8 {[%clk 0:00:21]} 36. a5 {[%clk 0:00:10]}  Rb4 {[%clk 0:00:20]} 37. a6 {[%clk 0:00:10]}  Ra8 {[%clk 0:00:18]} 38. Rd3 {[%clk 0:00:10]}  Rxc4 {[%clk 0:00:15]} 39. bxc4 {[%clk 0:00:11]}  Rxa6 {[%clk 0:00:15]} 40. Rd5 {[%clk 0:00:11]}  Ra5 {[%clk 0:00:15]} 41. Kg4 {[%clk 0:00:10]}  h6 {[%clk 0:00:14]} 42. e4 {[%clk 0:00:11]}  Kf8 {[%clk 0:00:14]} 43. Rd7 {[%clk 0:00:10]}  Ra4 {[%clk 0:00:12]} 44. Rxc7 {[%clk 0:00:10]}  Rxc4 {[%clk 0:00:13]} 45. Kf3 {[%clk 0:00:10]}  Rc3+ {[%clk 0:00:13]} 46. Kg4 {[%clk 0:00:10]}  Rc4 {[%clk 0:00:13]} 47. Kf3 {[%clk 0:00:09]}  Rc1 {[%clk 0:00:13]} 48. e5 {[%clk 0:00:09]}  c4 {[%clk 0:00:13]} 49. h4 {[%clk 0:00:08]}  h5 {[%clk 0:00:13]} 50. Ke4 {[%clk 0:00:08]}  c3 {[%clk 0:00:13]} 51. Kd3 {[%clk 0:00:09]}  Rf1 {[%clk 0:00:13]} 52. Ke3 {[%clk 0:00:08]}  Rc1 {[%clk 0:00:13]} 53. Kd3 {[%clk 0:00:08]}  Rh1 {[%clk 0:00:09]} 54. Rxc3 {[%clk 0:00:08]}  Rxh4 {[%clk 0:00:09]} 55. Ke4 {[%clk 0:00:08]}  g5 {[%clk 0:00:09]} 56. Kf5 {[%clk 0:00:08]}  Rxf4+ {[%clk 0:00:06]} 57. Kxg5 {[%clk 0:00:09]}  Re4 {[%clk 0:00:06]} 58. Kf6 {[%clk 0:00:07]}  Rf4+ {[%clk 0:00:06]} 59. Kg5 {[%clk 0:00:08]}  Rf1 {[%clk 0:00:06]} 60. Rh3 {[%clk 0:00:07]}  Ke7 {[%clk 0:00:06]} 61. Rxh5 {[%clk 0:00:07]}  Ke6 {[%clk 0:00:07]} 62. Kg4 {[%clk 0:00:08]}  Rf2 {[%clk 0:00:07]} 63. Kg3 {[%clk 0:00:08]}  Rf5 {[%clk 0:00:07]} 64. Rh8 {[%clk 0:00:07]}  Kxe5 {[%clk 0:00:07]} 65. Kg2 {[%clk 0:00:07]}  Rf4 {[%clk 0:00:07]} 66. Ra8 {[%clk 0:00:07]}  Kf5 {[%clk 0:00:07]} 67. Ra5+ {[%clk 0:00:08]}  Kg4 {[%clk 0:00:07]} 68. Ra3 {[%clk 0:00:08]}  f5 {[%clk 0:00:06]} 69. Rg3+ {[%clk 0:00:08]}  Kh4 {[%clk 0:00:06]} 70. Ra3 {[%clk 0:00:09]}  Kg5 {[%clk 0:00:06]} 71. Kh2 {[%clk 0:00:09]}  Rg4 {[%clk 0:00:06]} 72. Rb3 {[%clk 0:00:09]}  Kf4 {[%clk 0:00:05]} 73. Ra3 {[%clk 0:00:09]}  Ke5 {[%clk 0:00:05]} 74. Ra5+ {[%clk 0:00:09]}  Ke4 {[%clk 0:00:05]} 75. Ra4+ {[%clk 0:00:09]}  Kf3 {[%clk 0:00:06]} 76. Ra3+ {[%clk 0:00:10]}  Kf4 {[%clk 0:00:07]} 77. Ra4+ {[%clk 0:00:10]}  Kg5 {[%clk 0:00:07]} 78. Ra3 {[%clk 0:00:11]}  Kf6 {[%clk 0:00:08]} 79. Ra6+ {[%clk 0:00:11]}  Kg5 {[%clk 0:00:07]} 80. Ra3 {[%clk 0:00:11]}  Kh6 {[%clk 0:00:04]} 81. Ra6+ {[%clk 0:00:11]}  Kh5 {[%clk 0:00:04]} 82. Ra3 {[%clk 0:00:11]}  Kg5 {[%clk 0:00:03]} 83. Ra6 {[%clk 0:00:11]}  Kf4 {[%clk 0:00:03]} 84. Ra4+ {[%clk 0:00:12]}  Ke5 {[%clk 0:00:04]} 85. Ra5+ {[%clk 0:00:12]}  Ke6 {[%clk 0:00:04]} 86. Ra6+ {[%clk 0:00:13]}  Kf7 {[%clk 0:00:05]} 87. Ra5 {[%clk 0:00:13]}  Kf6 {[%clk 0:00:05]} 88. Ra6+ {[%clk 0:00:13]}  Kg5 {[%clk 0:00:06]} 89. Ra3 {[%clk 0:00:13]} 1/2-1/2


[Site "https://www.chess.com"]

[Event "Titled Tuesday Blitz March 22 Early 2022"]
[White "Dixit, Nikhil"]
[Black "Starozhilov, Leonid"]
[WhiteFideId "5059534"]
[BlackFideId "14106752"]
[WhiteElo "2479"]
[BlackElo "2669"]
[Result "1-0"]
[Round "09"]
[TimeControl "180+1"]
[Date "2022.03.22"]
[WhiteClock "0:00:14"]
[BlackClock "0:00:04"]

1. Nc3 {[%clk 0:02:56]}  Nf6 {[%clk 0:02:55]} 2. e4 {[%clk 0:02:54]}  d6 {[%clk 0:02:55]} 3. Be2 {[%clk 0:02:51]}  c5 {[%clk 0:02:52]} 4. Nf3 {[%clk 0:02:50]}  Nc6 {[%clk 0:02:52]} 5. d4 {[%clk 0:02:50]}  cxd4 {[%clk 0:02:51]} 6. Nxd4 {[%clk 0:02:51]}  g6 {[%clk 0:02:51]} 7. Be3 {[%clk 0:02:49]}  Bg7 {[%clk 0:02:51]} 8. O-O {[%clk 0:02:50]}  O-O {[%clk 0:02:49]} 9. Nb3 {[%clk 0:02:48]}  a5 {[%clk 0:02:47]} 10. a4 {[%clk 0:02:46]}  Be6 {[%clk 0:02:46]} 11. Nd4 {[%clk 0:02:43]}  Bd7 {[%clk 0:02:37]} 12. f3 {[%clk 0:02:16]}  Nxd4 {[%clk 0:02:32]} 13. Bxd4 {[%clk 0:02:14]}  Bc6 {[%clk 0:02:33]} 14. Qd2 {[%clk 0:02:07]}  Nd7 {[%clk 0:02:32]} 15. Bxg7 {[%clk 0:02:07]}  Kxg7 {[%clk 0:02:33]} 16. Qd4+ {[%clk 0:02:05]}  f6 {[%clk 0:02:29]} 17. Rfd1 {[%clk 0:01:58]}  Qb6 {[%clk 0:02:28]} 18. Qxb6 {[%clk 0:01:51]}  Nxb6 {[%clk 0:02:29]} 19. Rd4 {[%clk 0:01:43]}  Rfc8 {[%clk 0:02:27]} 20. Kf2 {[%clk 0:01:42]}  Nd7 {[%clk 0:02:24]} 21. Ke3 {[%clk 0:01:41]}  Nc5 {[%clk 0:02:24]} 22. Bb5 {[%clk 0:01:34]}  Rc7 {[%clk 0:02:15]} 23. Nd5 {[%clk 0:01:31]}  Bxd5 {[%clk 0:02:00]} 24. Rxd5 {[%clk 0:01:29]}  Rac8 {[%clk 0:01:57]} 25. c3 {[%clk 0:01:28]}  Nb3 {[%clk 0:01:40]} 26. Rad1 {[%clk 0:01:25]}  Rc5 {[%clk 0:01:37]} 27. f4 {[%clk 0:01:21]}  Kf7 {[%clk 0:01:24]} 28. f5 {[%clk 0:01:11]}  g5 {[%clk 0:01:16]} 29. Bd7 {[%clk 0:01:08]}  Rxd5 {[%clk 0:00:22]} 30. Rxd5 {[%clk 0:00:57]}  Ra8 {[%clk 0:00:17]} 31. Be6+ {[%clk 0:00:48]}  Kg7 {[%clk 0:00:17]} 32. Rxd6 {[%clk 0:00:45]}  exd6 {[%clk 0:00:16]} 33. Bxb3 {[%clk 0:00:46]}  Kf8 {[%clk 0:00:15]} 34. Bd5 {[%clk 0:00:45]}  Rb8 {[%clk 0:00:14]} 35. Kd4 {[%clk 0:00:44]}  b5 {[%clk 0:00:13]} 36. b4 {[%clk 0:00:29]}  axb4 {[%clk 0:00:11]} 37. a5 {[%clk 0:00:28]}  bxc3 {[%clk 0:00:09]} 38. Kxc3 {[%clk 0:00:25]}  b4+ {[%clk 0:00:09]} 39. Kb3 {[%clk 0:00:17]}  Rb5 {[%clk 0:00:09]} 40. Ka4 {[%clk 0:00:17]}  Rc5 {[%clk 0:00:06]} 41. a6 {[%clk 0:00:17]}  b3 {[%clk 0:00:04]} 42. Bxb3 {[%clk 0:00:16]}  Rc6 {[%clk 0:00:03]} 43. Kb5 {[%clk 0:00:16]}  Rc3 {[%clk 0:00:03]} 44. Bd5 {[%clk 0:00:16]}  Ra3 {[%clk 0:00:04]} 45. Kb6 {[%clk 0:00:15]}  Ke7 {[%clk 0:00:03]} 46. a7 {[%clk 0:00:16]}  Rb3+ {[%clk 0:00:04]} 47. Bxb3 {[%clk 0:00:14]} 1-0


[Site "https://www.chess.com"]

[Event "Titled Tuesday Blitz March 22 Early 2022"]
[White "Fernandez, Daniel Howard"]
[Black "Dronavalli, Harika"]
[WhiteFideId "5801605"]
[BlackFideId "5015197"]
[WhiteElo "2466"]
[BlackElo "2382"]
[Result "1-0"]
[Round "09"]
[TimeControl "180+1"]
[Date "2022.03.22"]
[WhiteClock "0:00:38"]
[BlackClock "0:00:20"]

1. e4 {[%clk 0:02:56]}  c5 {[%clk 0:02:59]} 2. Nf3 {[%clk 0:02:55]}  e6 {[%clk 0:02:59]} 3. d4 {[%clk 0:02:54]}  cxd4 {[%clk 0:02:59]} 4. Nxd4 {[%clk 0:02:54]}  a6 {[%clk 0:02:59]} 5. Nc3 {[%clk 0:02:54]}  b5 {[%clk 0:02:58]} 6. Bd3 {[%clk 0:02:52]}  Bb7 {[%clk 0:02:58]} 7. O-O {[%clk 0:02:51]}  Nc6 {[%clk 0:02:59]} 8. Nxc6 {[%clk 0:02:48]}  Bxc6 {[%clk 0:02:59]} 9. Re1 {[%clk 0:02:48]}  Be7 {[%clk 0:02:47]} 10. Qg4 {[%clk 0:02:46]}  Kf8 {[%clk 0:02:31]} 11. e5 {[%clk 0:02:41]}  h5 {[%clk 0:02:30]} 12. Qf4 {[%clk 0:02:40]}  d5 {[%clk 0:02:12]} 13. Ne2 {[%clk 0:02:35]}  g5 {[%clk 0:01:54]} 14. Qf3 {[%clk 0:02:32]}  Kg7 {[%clk 0:01:35]} 15. Nd4 {[%clk 0:02:30]}  Bd7 {[%clk 0:01:34]} 16. Bd2 {[%clk 0:01:58]}  h4 {[%clk 0:01:28]} 17. h3 {[%clk 0:01:51]}  Nh6 {[%clk 0:01:28]} 18. a3 {[%clk 0:01:24]}  Bc5 {[%clk 0:00:56]} 19. c3 {[%clk 0:01:16]}  Be7 {[%clk 0:00:55]} 20. b3 {[%clk 0:01:01]}  Rc8 {[%clk 0:00:52]} 21. a4 {[%clk 0:01:01]}  bxa4 {[%clk 0:00:51]} 22. bxa4 {[%clk 0:01:02]}  Ra8 {[%clk 0:00:42]} 23. Reb1 {[%clk 0:00:56]}  Qe8 {[%clk 0:00:27]} 24. Rb7 {[%clk 0:00:54]}  Bc8 {[%clk 0:00:23]} 25. Rxe7 {[%clk 0:00:42]}  Qxe7 {[%clk 0:00:23]} 26. Nc6 {[%clk 0:00:43]}  Qc7 {[%clk 0:00:20]} 27. Bxg5 {[%clk 0:00:43]}  Qxc6 {[%clk 0:00:20]} 28. Qf6+ {[%clk 0:00:43]}  Kg8 {[%clk 0:00:21]} 29. Qd8+ {[%clk 0:00:37]}  Kg7 {[%clk 0:00:20]} 30. Bf6# {[%clk 0:00:38]} 1-0


[Site "https://www.chess.com"]

[Event "Titled Tuesday Blitz March 22 Early 2022"]
[White "Fiorito, Fabian"]
[Black "Kowalczyk, Pawel"]
[WhiteFideId "100200"]
[BlackFideId "1130641"]
[WhiteElo "2484"]
[BlackElo "2663"]
[Result "0-1"]
[Round "09"]
[TimeControl "180+1"]
[Date "2022.03.22"]
[WhiteClock "0:00:37"]
[BlackClock "0:02:20"]

1. e4 {[%clk 0:03:00]}  c5 {[%clk 0:02:59]} 2. Nf3 {[%clk 0:03:00]}  e6 {[%clk 0:03:00]} 3. d4 {[%clk 0:03:00]}  cxd4 {[%clk 0:03:00]} 4. Nxd4 {[%clk 0:03:01]}  Qb6 {[%clk 0:03:00]} 5. Nc3 {[%clk 0:02:59]}  Bc5 {[%clk 0:03:00]} 6. Na4 {[%clk 0:02:13]}  Qa5+ {[%clk 0:03:00]} 7. c3 {[%clk 0:02:13]}  Bxd4 {[%clk 0:03:00]} 8. Qxd4 {[%clk 0:02:13]}  Nf6 {[%clk 0:03:01]} 9. Nc5 {[%clk 0:01:43]}  O-O {[%clk 0:03:00]} 10. Nb3 {[%clk 0:01:40]}  Qh5 {[%clk 0:03:00]} 11. Be2 {[%clk 0:01:40]}  Qg6 {[%clk 0:03:01]} 12. Bf3 {[%clk 0:01:37]}  d5 {[%clk 0:02:59]} 13. exd5 {[%clk 0:01:35]}  e5 {[%clk 0:02:58]} 14. Qh4 {[%clk 0:01:18]}  e4 {[%clk 0:02:58]} 15. Be2 {[%clk 0:01:15]}  Qxg2 {[%clk 0:02:58]} 16. Rf1 {[%clk 0:01:15]}  Bg4 {[%clk 0:02:52]} 17. Be3 {[%clk 0:01:10]}  Bxe2 {[%clk 0:02:50]} 18. Kxe2 {[%clk 0:01:11]}  Qf3+ {[%clk 0:02:50]} 19. Kd2 {[%clk 0:01:09]}  Nxd5 {[%clk 0:02:43]} 20. Nd4 {[%clk 0:01:08]}  Qf6 {[%clk 0:02:43]} 21. Qg3 {[%clk 0:01:06]}  Nc6 {[%clk 0:02:40]} 22. Kc2 {[%clk 0:01:06]}  Rac8 {[%clk 0:02:38]} 23. Rad1 {[%clk 0:00:54]}  Ncb4+ {[%clk 0:02:37]} 24. Kb1 {[%clk 0:00:54]}  Nd3 {[%clk 0:02:36]} 25. Rg1 {[%clk 0:00:52]}  g6 {[%clk 0:02:36]} 26. h4 {[%clk 0:00:50]}  a5 {[%clk 0:02:26]} 27. h5 {[%clk 0:00:50]}  a4 {[%clk 0:02:27]} 28. a3 {[%clk 0:00:37]}  Nxc3+ {[%clk 0:02:20]} 29. bxc3 {[%clk 0:00:37]}  Qb6+ {[%clk 0:02:20]} 0-1


[Site "https://www.chess.com"]